{"text_format":"1","workbook":"xlsx","n_sheets":2,"sheets":["informacja hodowca","słownik"],"not_rendered":{"charts":0,"images":1,"macros":0,"external_links":0,"defined_names":2,"comments":0,"pivot_tables":0},"unopened":[],"bounds":{"document_bytes":16777216,"sheet_cells":100000,"rows_first":2000,"rows_last":500,"rows_between":2000,"halvings":0,"cell_chars":16384,"cell_head_chars":4096},"cells_cut":0,"cells_raw":0,"read":"whole","date_system":"1900"}

{"sheet":"informacja hodowca","index":0,"n_rows":35,"n_cols":24,"rows_kept":35,"cut":false,"hidden":false,"merged":[[18,9,18,10],[19,9,19,10],[20,9,20,10],[21,9,21,10],[22,9,22,10],[12,1,12,13],[17,2,17,13],[19,1,19,7],[23,1,23,7],[18,11,18,13],[19,11,19,13],[20,11,20,13],[21,11,21,13],[13,3,13,13],[14,3,14,13],[15,3,15,13],[16,3,16,13],[5,1,7,1],[7,10,7,13],[8,5,8,13],[9,2,9,13],[6,2,6,13],[11,1,11,2],[11,3,11,13],[8,1,8,4],[10,1,10,2],[10,3,10,13],[14,1,14,2],[15,1,15,2],[16,1,16,2],[13,1,13,2],[22,1,22,7],[25,1,25,7],[20,1,20,7],[32,1,32,13],[24,1,24,7],[22,11,22,13],[23,11,23,13],[29,2,29,13],[30,1,30,13],[23,9,23,10],[24,9,24,10],[25,9,25,10],[33,1,33,13],[34,1,34,13],[5,2,5,11],[18,1,18,7],[21,1,21,7],[24,11,24,13],[25,11,25,13],[27,1,27,5],[27,6,27,9],[27,10,27,13],[28,1,28,5],[28,6,28,9],[28,10,28,13],[26,2,26,13]]}
[]
[]
[]
[]
[null,"Wypełnij czerwone pola. Pola należy wypełniać po kolei, ponieważ są od siebie zależne."]
[null,"Lp.","Informacja dostawcy przekazywana ministrowi właściwemu do spraw nauki",null,null,null,null,null,null,null,null,null,"Pozycja w rejestrze 2)"]
[null,null,"na podstawie art. 30 ust. 5 ustawy 1)"]
[null,null,null,null,null,null,"za  ",null,"rok",null,null,null,null,null,null,null,null,null,null,null,null,{"$f":"COUNTBLANK(H8)","v":1}]
[null,"Data sporządzenia informacji",null,null,null,null,null,null,null,null,null,null,null,null,null,null,null,null,null,null,null,{"$f":"COUNTBLANK(F9)","v":1}]
[null,"1.","Dane dostawcy 3)"]
[null,"Nazwa",null,null,null,null,null,null,null,null,null,null,null,null,null,null,null,null,null,null,null,{"$f":"COUNTBLANK(D11)","v":1}]
[null,"Adres wykonywania  działalnosci ",null,null,null,null,null,null,null,null,null,null,null,null,null,null,null,null,null,null,null,{"$f":"COUNTBLANK(D12)","v":1}]
[null,"Dane kontaktowe osoby sporządzającej informację"]
[null,"Imię",null,null,null,null,null,null,null,null,null,null,null,null,null,null,null,null,null,null,null,{"$f":"COUNTBLANK(D14)","v":1}]
[null,"Nazwisko",null,null,null,null,null,null,null,null,null,null,null,null,null,null,null,null,null,null,null,1]
[null,"Telefon służbowy ",null,null,null,null,null,null,null,null,null,null,null,null,null,null,null,null,null,null,null,1]
[null,"E-mail służbowy ",null,null,null,null,null,null,null,null,null,null,null,null,null,null,null,null,null,null,null,{"$f":"COUNTBLANK(D17)","v":1}]
[null,"2.","Zwierzęta dostarczone (inne niż zwierzęta z rzędu naczelnych)"]
[null,"Gatunek (zwierzęta niezmienione genetycznie)",null,null,null,null,null,null,"Inny","Liczba zwierząt dostarczonych",null,"Liczba zwierząt uśmierconych lub padłych"]
[null,"wybierz z listy",null,null,null,null,null,null,null,null,null,null,null,null,null,null,null,null,null,null,null,{"$f":"COUNTIF(B20,\"wybierz z listy\")","v":1},{"$f":"COUNTBLANK(I20)","v":1},{"$f":"COUNTBLANK(L20)","v":1}]
[null,"wybierz z listy",null,null,null,null,null,null,null,null,null,null,null,null,null,null,null,null,null,null,null,{"$f":"COUNTIF(B21,\"wybierz z listy\")","v":1},{"$f":"COUNTBLANK(I21)","v":1},{"$f":"COUNTBLANK(L21)","v":1}]
[null,"wybierz z listy",null,null,null,null,null,null,null,null,null,null,null,null,null,null,null,null,null,null,null,{"$f":"COUNTIF(B22,\"wybierz z listy\")","v":1},1,{"$f":"COUNTBLANK(L22)","v":1}]
[null,"Gatunek (zwierzęta zmienione genetycznie 4) )",null,null,null,null,null,null,"Inny","Liczba zwierząt dostarczonych",null,"Liczba zwierząt uśmierconych lub padłych"]
[null,"wybierz z listy",null,null,null,null,null,null,null,null,null,null,null,null,null,null,null,null,null,null,null,{"$f":"COUNTIF(B24,\"wybierz z listy\")","v":1},{"$f":"COUNTBLANK(I24)","v":1},{"$f":"COUNTBLANK(L24)","v":1}]
[null,"wybierz z listy",null,null,null,null,null,null,null,null,null,null,null,null,null,null,null,null,null,null,null,{"$f":"COUNTIF(B25,\"wybierz z listy\")","v":1},1,1]
[null,"wybierz z listy",null,null,null,null,null,null,null,null,null,null,null,null,null,null,null,null,null,null,null,1,{"$f":"COUNTBLANK(I26)","v":1},{"$f":"COUNTBLANK(L26)","v":1}]
[null,"3.","Zwierzęta dostarczone z rzędu naczelnych "]
[null,"Gatunek",null,null,null,null,"Liczba zwierząt dostarczonych",null,null,null,"Żródła pozyskiwania zwierząt"]
[null,"wybierz z listy",null,null,null,null,null,null,null,null,null,null,null,null,null,null,null,null,null,null,null,{"$f":"COUNTIF(B29,\"wybierz z listy\")","v":1},{"$f":"COUNTBLANK(G29)","v":1},{"$f":"COUNTBLANK(K29)","v":1}]
[null,"4.","Uwagi *"]
[]
[null,"[1]) Ustawa z dnia 15 stycznia 2015 r. o ochronie zwierząt wykorzystywanych do celów naukowych lub edukacyjnych."]
[null,"[2]) Rejestr, o którym mowa w art. 26 ustawy z dnia 15 stycznia 2015 r. o ochronie zwierząt wykorzystywanych do celów naukowych i edukacyjnych"]
[null,"[3]) Dane należy wpisać zgodnie z danymi podanymi we wniosku, o których mowa w art. 27 ust. 3 ustawy z dnia 15 stycznia 2015 r. o ochronie zwierząt wykorzystywanych do celów naukowych i edukacyjnych"]
[null,"[4]) Kategoria \"zwierzęta zmienione genetycznie\" obejmuje zwierzęta zmienione genetycznie (transgenicznie, metodą knock-out i za pomocą innych modyfikacji genetycznych) oraz zwierzęta, u których mutacja wystąpiła naturalnie lub została indukowana."]

{"sheet":"słownik","index":1,"n_rows":32,"n_cols":5,"rows_kept":32,"cut":false,"hidden":true,"merged":[]}
[]
[]
[null,"wybierz z listy 1",null,null,"wybierz z listy 2"]
[]
[null,null,null,"18)  ","małpiatki (Prosimia)"]
["1)   ","mysz domowa (Mus musculus)",null,"19)  ","marmozety i tamaryny (w tym Callithrixx jacchus)"]
["2)   ","szczur wędrowny (Rattus norvegicus)",null,"20)  ","makak jawajski (Macaca fascicularis)"]
["3)   ","świnka morska (Cavia porcellus)",null,"21)  ","makak rezus (Macaca mulatta)"]
["4)   ","chomik syryjski (Mesocricetus auratus)",null,"22)  ","koczkodany Chlorocebus spp. (w tym Pygerythrus lub sabaeus)"]
["5)   ","chomik chiński (Cricetulus griseus)",null,"23)  ","pawiany (Papio spp.)"]
["6)   ","myszoskoczek mongolski (Meriones unguiculatus)",null,"24)  ","sajmiri wiewiórcza (w tym Saimiri sciureus)"]
["7)   ","inne gryzonie (inne Rodentia)",null,"25)  ","inne gatunki zwierząt naczelnych (inne gatunki Ceboidea i Cercopithecoidea)"]
["8)   ","królik europejski (Oryctolagus caniculus)",null,"26)  ","człekokształtne (Hominoidea)"]
["9)   ","kot domowy (Felis catus)",null,"18)  ","małpiatki (Prosimia)"]
["10)  ","pies domowy (Canis familiaris)",null,"19)  ","marmozety i tamaryny (w tym Callithrixx jacchus)"]
["11)  ","fretki (Mustela putorius furo)",null,"20)  ","makak jawajski (Macaca fascicularis)"]
["12)  ","inne drapieżniki (inne Carnivora)",null,"21)  ","makak rezus (Macaca mulatta)"]
["13)  ","konie, osły i ich mieszańce (Equidae)",null,"22)  ","koczkodany Chlorocebus spp. (w tym Pygerythrus lub sabaeus)"]
["14)  ","świnie (Sus scrofa domesticus)",null,"23)  ","pawiany (Papio spp.)"]
["15)  ","kozy (Capra aegagrus hircus)",null,"24)  ","sajmiri wiewiórcza (w tym Saimiri sciureus)"]
["16)  ","owce (Ovis aries)",null,"25)  ","inne gatunki zwierząt naczelnych (inne gatunki Ceboidea i Cercopithecoidea)"]
["17)  ","bydło (Bos primigenius)",null,"26)  ","człekokształtne (Hominoidea)"]
["27)  ","inne ssaki (inne Mammalia)"]
["28)  ","kura domowa (Gallus gallus domesticus)"]
["29)  ","inne ptaki (inne Aves)"]
["30)  ","gady (Reptilia)"]
["31)  ","żaby trawne (Rana temporaria) i żaby lamparcie (Rana pipiens)"]
["32)  ","grzbietorodowate: Platany szponiaste (Xenopus laevis) oraz platany tropikalne (Xenopus tropicalis)"]
["33)  ","inne płazy (inne Amphibia)"]
["34)  ","danio pręgowany (Danio rerio)"]
["35)  ","inne ryby (inne Pisces)"]
["36)  ","głowonogi (Cephalopoda)."]